bitfinex-derivatives/quotes_SOLF0:USTF0_20251107
["timestamp","ask_amount","ask_price","bid_price","bid_amount"]
[1762516424929,0.04153118,153.63,153.59,3.14562279]
[1762516425139,4.93063866,153.62,153.59,0.04562279]
[1762516425333,4.93063866,153.61,153.59,0.04562279]
[1762516425541,2.99153118,153.63,153.59,0.04562279]
[1762516425735,4.92802224,153.62,153.59,0.04562279]
[1762516425938,4.92802224,153.61,153.59,0.04562279]
[1762516426138,5.8617,153.62,153.59,0.04562279]
[1762516426534,4.92892373,153.61,153.59,0.04562279]
[1762516426735,5.8617,153.62,153.59,0.04562279]
[1762516426940,2.99153118,153.63,153.59,0.04562279]
[1762516426941,10.79102046,153.61,153.59,0.04562279]
[1762516427142,2.99153118,153.63,153.59,0.04562279]
[1762516427342,7.87889113,153.62,153.59,0.04562279]
[1762516427538,2.95,153.6,153.59,0.04562279]
[1762516427746,7.87889113,153.6,153.53,9.68]
[1762516428044,4.92889113,153.59,153.53,9.68]
[1762516428228,7.87889113,153.58,153.53,12.78]
[1762516428544,2.95,153.58,153.53,12.78]
[1762516428738,2.99850289,153.57,153.53,12.78]
[1762516428938,8.86210289,153.57,153.53,9.68]
[1762516429441,8.814,153.56,153.53,9.68]
[1762516429637,2.95,153.55,153.53,9.68]
[1762516429839,0.04850289,153.57,153.5,3.1]
[1762516430036,7.99475546,153.65,153.56,3.1]
[1762516430237,2.95,153.66,153.56,3.1]
[1762516430537,5.8605,153.65,153.56,3.1]
[1762516430743,2.95,153.66,153.56,3.1]
[1762516430943,10.94475546,153.66,153.56,3.1]
[1762516431241,2.99401479,153.63,153.59,0.04995476]
[1762516431436,0.04401479,153.63,153.6,3.1]
[1762516431642,0.04401479,153.63,153.59,3.14995476]
[1762516434142,0.04401479,153.63,153.59,11.70028774]
[1762516434350,0.04401479,153.63,153.6,3.1]
[1762516434649,0.04401479,153.63,153.62,3.1]
[1762516435344,0.04401479,153.63,153.6,3.1]
[1762516436149,0.04401479,153.63,153.59,0.04995476]
[1762516436347,0.04401479,153.63,153.59,3.14995476]
[1762516436651,8.85541479,153.63,153.59,0.04995476]
[1762516437242,2.99401479,153.63,153.59,0.04995476]
[1762516439555,2.95,153.61,153.59,0.04995476]
[1762516439750,2.99401479,153.63,153.59,0.04995476]
[1762516440244,0.04401479,153.63,153.59,3.14995476]
[1762516440640,0.04401479,153.63,153.62,3.1]
[1762516440851,7.99475546,153.68,153.62,3.1]
[1762516441053,10.94475546,153.68,153.59,11.65033298]
[1762516441246,5.8598,153.67,153.61,8.9618]
[1762516441740,5.8598,153.67,153.61,3.1]
[1762516441942,4.93721766,153.66,153.62,0.04801529]
[1762516442249,4.89200424,153.65,153.62,3.14801529]
[1762516442451,4.89200424,153.64,153.62,3.14801529]
[1762516442754,0.04521342,153.66,153.62,3.14801529]
[1762516445248,0.04521342,153.66,153.65,3.1]
[1762516445437,7.99475546,153.73,153.65,3.1]
[1762516445438,4.90400661,153.7,153.65,3.1]
[1762516445646,2.95,153.74,153.65,3.1]
[1762516445951,4.90449902,153.73,153.68,5.8592]
[1762516446250,7.99475546,153.79,153.69,3.1]
[1762516446453,0.04577904,153.76,153.73,3.1]
[1762516446941,8.02886,153.8,153.74,3.1]
[1762516447143,8.02886,153.8,153.74,8.9569]
[1762516447446,8.02886,153.8,153.76,3.1]
[1762516447951,8.07296607,153.8,153.76,3.14706766]
[1762516448150,8.07296607,153.8,153.79,3.1]
[1762516448358,4.90867654,153.86,153.79,3.1]
[1762516448650,2.95,153.88,153.79,11.65033298]
[1762516448853,4.91101803,153.87,153.8,3.1]
[1762516449060,4.91101803,153.86,153.8,3.1]
[1762516449355,0.04619514,153.85,153.81,0.04364209]
[1762516449557,0.04619514,153.85,153.81,3.14364209]
[1762516452458,0.04619514,153.85,153.82,3.1]
[1762516453556,0.04619514,153.85,153.84,3.1]
[1762516454253,204.02749578,153.9,153.84,4.4]
[1762516454561,204.02749578,153.9,153.82,67.02]
[1762516454562,69.98,153.95,153.86,3.14]
[1762516454758,2.94,153.95,153.86,3.14]
[1762516455460,0.04500372,153.92,153.89,3.18345494]
[1762516456055,31.84531921,154.08,153.89,3.18345494]
[1762516456056,8.786,154.03,153.95,3.14]
[1762516456252,2.94,154.07,153.95,3.14]
[1762516456756,2.94,154.07,153.98,3.14]
[1762516456947,0.04477554,154.04,154.01,0.04660937]
[1762516457158,2.98477554,154.04,154.01,0.04660937]
[1762516459363,2.94,154.03,153.94,3.14]
[1762516459955,5.8466,154.02,153.94,3.14]
[1762516460255,2.94,154.01,153.92,5.8498]
[1762516460461,2.98998308,153.98,153.95,0.04659571]
[1762516460652,2.98591723,153.98,153.95,0.04236545]
[1762516461858,2.94,153.97,153.87,8.14945254]
[1762516462667,2.94,153.95,153.87,27.50599298]
[1762516462974,0.04209929,153.93,153.89,3.18592082]
[1762516464061,2.98209929,153.93,153.89,0.04592082]
[1762516465064,8.83209929,153.93,153.89,0.04592082]
[1762516465264,2.94,153.92,153.89,0.04592082]
[1762516465863,0.04209929,153.93,153.89,0.04592082]
[1762516466062,0.04209929,153.93,153.89,3.18592082]
[1762516466261,0.04209929,153.93,153.89,0.04592082]
[1762516466262,2.98209929,153.93,153.89,0.04592082]
[1762516467562,2.94,153.9,153.89,0.04592082]
[1762516468366,4.24,153.9,153.81,8.14945254]
[1762516468562,2.94,153.9,153.81,22.93336375]
[1762516468875,2.94,153.9,153.81,3.14]
[1762516469466,0.04380473,153.87,153.84,0.04651819]
[1762516469663,2.98380473,153.87,153.84,0.04651819]
[1762516470061,2.94,153.85,153.84,0.04651819]
[1762516471078,5.8532,153.84,153.77,3.14]
[1762516471267,2.94,153.84,153.75,10.86595254]
[1762516471466,2.94,153.84,153.75,14.00595254]
[1762516472075,2.98873093,153.81,153.78,0.04850546]
[1762516472269,2.98960028,153.81,153.78,0.04452025]
[1762516473366,8.84410028,153.81,153.78,0.04452025]
[1762516473570,2.98960028,153.81,153.78,0.04452025]
[1762516473873,2.94,153.79,153.78,0.04452025]
[1762516474870,2.94,153.77,153.71,3.14]
[1762516475269,2.94,153.77,153.7,5.00945254]
[1762516475871,4.85314216,153.83,153.72,0.04389586]
[1762516475872,2.94,153.74,153.72,0.04389586]
[1762516476076,2.94,153.74,153.71,0.04246883]
[1762516476477,8.7972,153.74,153.71,0.04246883]
[1762516476674,2.94,153.73,153.71,0.04246883]
[1762516477471,2.94,153.72,153.71,0.04246883]
[1762516478474,2.94,153.7,153.62,3.14]
[1762516478871,8.7988,153.7,153.62,3.14]
[1762516479175,2.94,153.7,153.62,3.14]
[1762516479473,0.04879545,153.68,153.64,0.04759961]
[1762516479880,0.04879545,153.68,153.64,3.29759961]
[1762516482779,5.90829545,153.68,153.64,3.29759961]
[1762516483081,3.01879545,153.68,153.64,0.04759961]
[1762516483382,0.04879545,153.68,153.64,3.29759961]
[1762516484178,2.97,153.75,153.67,3.04]
[1762516484782,8.8268,153.75,153.67,8.8994]
[1762516484983,2.97,153.75,153.64,3.04]
[1762516485178,0.04489935,153.71,153.68,0.04591597]
[1762516485385,2.98,153.7,153.68,0.04600813]
[1762516486274,5.8586,153.7,153.68,0.04600813]
[1762516486482,2.98,153.69,153.68,0.04600813]
[1762516486875,2.98,153.68,153.6,3.04]
[1762516487783,0.04346396,153.66,153.62,0.04185353]
[1762516487980,2.98,153.65,153.62,0.04185353]
[1762516488577,0.04346396,153.66,153.62,3.08185353]
[1762516492680,0.04346396,153.66,153.63,8.901]
[1762516492983,0.04346396,153.66,153.62,3.08185353]
[1762516493681,3.02346396,153.66,153.62,0.04185353]
[1762516494290,5.8605,153.65,153.62,0.04185353]
[1762516494791,5.861,153.64,153.62,0.04185353]
[1762516494983,8.841,153.64,153.62,0.04185353]
[1762516495889,2.98,153.63,153.62,0.04185353]
[1762516497584,2.98,153.63,153.55,8.62]
[1762516497783,2.98,153.62,153.55,8.62]
[1762516498292,8.8417,153.62,153.55,8.62]
[1762516498688,0.0452652,153.6,153.56,3.04]
[1762516498887,0.0452652,153.6,153.56,8.9037]
[1762516499092,0.0452652,153.6,153.56,8.04945254]
[1762516499291,0.0452652,153.6,153.57,3.04]
[1762516500194,0.0452652,153.6,153.58,3.04]
[1762516500395,2.98,153.72,153.59,3.04]
[1762516500601,2.98,153.76,153.63,3.04]
[1762516500795,2.98,153.76,153.64,3.04]
[1762516501394,0.04986696,153.72,153.68,0.04287754]
[1762516501694,0.04986696,153.72,153.68,3.09009893]
[1762516502185,3.02986696,153.72,153.68,0.05009893]
[1762516503598,8.8383,153.71,153.68,0.05009893]
[1762516503796,2.98,153.7,153.68,0.05009893]
[1762516504096,8.8386,153.7,153.68,0.05009893]
[1762516504291,0.04986696,153.72,153.68,0.05009893]
[1762516504497,0.04986696,153.72,153.68,3.09009893]
[1762516504699,8.88776696,153.72,153.68,0.05009893]
[1762516504895,2.98,153.71,153.68,0.05009893]
[1762516505397,2.98,153.69,153.68,0.05009893]
[1762516505597,7.9225312,153.69,153.6,3.04]
[1762516505805,5.8599,153.67,153.6,3.04]
[1762516506402,2.98,153.69,153.6,3.04]
[1762516506606,2.98,153.69,153.62,3.04]
[1762516506607,0.04910399,153.66,153.62,3.04]
[1762516506897,0.04910399,153.66,153.6,3.04]
[1762516507102,0.04910399,153.66,153.62,3.04]
[1762516508408,0.04910399,153.66,153.63,3.04]
[1762516509011,0.04910399,153.66,153.6,3.04]
[1762516509211,0.04910399,153.66,153.61,8.9019]
[1762516509407,0.04910399,153.66,153.62,8.04945254]
[1762516509714,0.04910399,153.66,153.63,3.04]
[1762516509908,0.04910399,153.66,153.65,3.04]
[1762516511312,5.94928158,153.72,153.65,3.04]
[1762516511513,5.8591,153.69,153.65,3.04]
[1762516511713,4.97434775,153.68,153.65,3.04]
[1762516512017,5.94928158,153.72,153.65,3.04]
[1762516512209,0.04892346,153.7,153.68,3.04]
[1762516512708,5.94928158,153.77,153.7,3.04]
[1762516512910,4.97538409,153.76,153.73,3.04]
[1762516513110,4.97538409,153.75,153.73,3.04]
[1762516513310,4.97538409,153.74,153.73,3.04]
[1762516513505,5.94928158,153.78,153.75,3.04]
[1762516513711,4.98363002,153.77,153.75,3.04]
[1762516513912,4.98363002,153.76,153.75,3.04]
[1762516514305,2.96,153.75,153.69,7.44]
[1762516514508,4.98363002,153.76,153.69,10.64]
[1762516514509,19.83262964,153.74,153.69,10.64]
[1762516514715,4.98363002,153.73,153.69,10.64]
[1762516514916,4.98363002,153.72,153.69,10.64]
[1762516515218,4.98363002,153.71,153.69,10.64]
[1762516515416,4.98363002,153.7,153.69,10.64]
[1762516516116,4.98363002,153.7,153.69,7.44]
[1762516516319,11.01542964,153.7,153.69,7.44]
[1762516519217,4.98363002,153.7,153.69,10.64]
[1762516519716,1.65716884,153.7,153.69,10.64]
[1762516521223,0.04351844,153.72,153.69,16.4987]
[1762516521424,0.04351844,153.72,153.69,10.64]
[1762516521810,0.04351844,153.72,153.69,16.4988]
[1762516522016,0.04351844,153.72,153.7,3.2]
[1762516522417,11.60628623,153.8,153.69,7.44]
[1762516522418,7.99475546,153.79,153.71,3.2]
[1762516522726,6.03179962,153.82,153.73,8.56445925]
[1762516522924,6.03179962,153.82,153.74,3.2]
[1762516523122,6.03179962,153.83,153.74,3.2]
[1762516523421,0.04959288,153.8,153.79,3.2]
[1762516523820,0.04959288,153.8,153.79,9.0548]
[1762516524121,0.04959288,153.8,153.79,3.2]
[1762516524326,0.04959288,153.8,153.77,3.24943727]
[1762516524827,0.04959288,153.8,153.77,9.10513727]
[1762516525423,0.04959288,153.8,153.77,3.24943727]
[1762516525620,0.04959288,153.8,153.77,0.04943727]
[1762516526324,3.00959288,153.8,153.77,0.04943727]
[1762516527820,2.96,153.78,153.69,7.44]
[1762516528218,2.96,153.74,153.67,5.8596]
[1762516528423,2.96,153.74,153.64,3.2]
[1762516528832,0.04229771,153.71,153.67,5.90416391]
[1762516529035,0.04229771,153.71,153.67,3.24466391]
[1762516529627,0.04229771,153.71,153.67,9.10416391]
[1762516530534,0.04229771,153.71,153.68,9.0591]
[1762516530933,0.04229771,153.71,153.68,3.2]
[1762516532126,0.04229771,153.71,153.67,3.24466391]
[1762516533030,8.99179962,153.8,153.67,3.24466391]
[1762516533231,7.92961278,153.79,153.67,3.2]
[1762516533432,2.96,153.79,153.71,5.858]
[1762516534238,3.00206523,153.77,153.73,0.04914438]
[1762516535642,2.96,153.75,153.73,0.04914438]
[1762516536530,3.00206523,153.77,153.73,0.04914438]
[1762516536931,8.8164,153.76,153.73,0.04914438]
[1762516537128,0.04206523,153.77,153.73,3.24914438]
[1762516537439,0.04206523,153.77,153.75,3.2]
[1762516537634,0.04206523,153.77,153.76,3.2]
[1762516537938,2.96,153.83,153.76,3.2]
[1762516538932,0.04857556,153.81,153.78,3.24210075]
[1762516539138,0.04415639,153.81,153.78,3.24571252]
[1762516540431,0.04415639,153.81,153.8,3.27]
[1762516540631,0.04415639,153.81,153.78,3.31571252]
[1762516541040,0.04415639,153.81,153.78,9.17091252]
[1762516541230,0.04415639,153.81,153.79,3.27]
[1762516541642,0.04415639,153.81,153.79,9.1248]
[1762516541837,4.96185927,153.89,153.8,3.27]
[1762516542043,3.22,153.9,153.8,3.27]
[1762516542738,9.0712,153.9,153.81,3.27]
[1762516543044,0.04613045,153.87,153.84,0.0416617]
[1762516544035,0.04613045,153.87,153.84,3.3116617]
[1762516544241,3.26613045,153.87,153.84,0.0416617]
[1762516545936,0.04613045,153.87,153.84,0.0416617]
[1762516546244,0.04613045,153.87,153.84,3.2116617]
[1762516546837,0.04613045,153.87,153.86,3.17]
[1762516547734,0.04613045,153.87,153.84,0.0416617]
[1762516549841,3.24613045,153.87,153.84,0.0416617]
[1762516550342,0.04613045,153.87,153.84,0.0416617]
[1762516550550,0.04613045,153.87,153.84,3.2116617]
[1762516551041,0.04613045,153.87,153.84,0.0416617]
[1762516552035,3.24613045,153.87,153.84,0.0416617]
[1762516552641,0.04613045,153.87,153.84,0.0416617]
[1762516553251,0.04613045,153.87,153.86,3.17]
[1762516554040,0.04613045,153.87,153.86,4.47]
[1762516554548,4.95245167,153.93,153.89,3.17]
[1762516554747,202.7663305,153.96,153.89,3.17]
[1762516554944,202.7663305,153.96,153.92,3.17]
[1762516554945,4.95211067,153.95,153.92,3.17]
[1762516555146,202.7663305,153.96,153.92,3.17]
[1762516555350,205.9663305,153.96,153.91,5.8504]
[1762516555551,0.04737994,153.95,153.92,0.04165549]
[1762516555859,0.04737994,153.95,153.92,9.06165549]
[1762516557747,0.04737994,153.95,153.92,3.21165549]
[1762516557948,3.24737994,153.95,153.92,0.04165549]
[1762516560253,3.2,153.93,153.85,3.17]
[1762516560648,3.2,153.96,153.88,5.8515]
[1762516560847,8.1415074,153.95,153.88,5.8515]
[1762516561047,8.1415074,153.95,153.88,3.17]
[1762516561048,3.2,153.95,153.88,3.17]
[1762516561244,3.2,153.94,153.9,0.04430811]
[1762516561444,3.2,153.92,153.84,3.17]
[1762516561848,0.04782507,153.9,153.86,3.21621438]
[1762516562248,6.03179962,153.98,153.86,3.21621438]
[1762516562249,9.23179962,154.0,153.87,4.47]
[1762516562449,9.23179962,154.0,153.84,8.56445925]
[1762516562450,3.2,154.0,153.94,5.8491]
[1762516562851,3.2,153.98,153.88,3.17]
[1762516563059,3.2,153.95,153.88,9.0214]
[1762516563260,3.24218222,153.93,153.9,0.04587302]
[1762516563455,3.24618116,153.93,153.9,0.04458103]
[1762516563758,3.2,153.92,153.9,0.04458103]
[1762516564357,9.0503,153.92,153.9,0.04458103]
[1762516564557,3.2,153.91,153.9,0.04458103]
[1762516566158,3.2,153.9,153.83,5.8535]
[1762516566357,3.2,153.9,153.8,3.17]
[1762516567157,3.2,153.9,153.83,0.04698016]
[1762516567458,0.04486052,153.87,153.83,3.21698016]
[1762516567657,3.24486052,153.87,153.83,0.04698016]
[1762516567858,0.04486052,153.87,153.83,3.21698016]
[1762516568357,7.99475546,153.95,153.83,3.21698016]
[1762516568358,6.03179962,153.98,153.86,3.17]
[1762516568548,3.2,154.0,153.87,3.17]
[1762516568751,3.2,154.0,153.91,9.0202]
[1762516568957,3.2,154.0,153.91,3.17]
[1762516569159,3.2,153.96,153.94,0.0468597]
[1762516569361,0.04237188,153.97,153.94,0.0468597]
[1762516570260,0.04237188,153.97,153.94,3.2168597]
[1762516570868,0.04237188,153.97,153.95,5.849]
[1762516571070,0.04237188,153.97,153.96,3.17]
[1762516572858,0.04237188,153.97,153.94,3.2168597]
[1762516573763,0.04237188,153.97,153.96,3.17]
[1762516573963,3.2,154.03,153.96,3.17]
[1762516574566,3.2,154.03,153.92,3.17]
[1762516574766,3.2,154.03,153.96,5.8484]
[1762516574967,0.04885369,154.01,153.98,0.04931096]
[1762516575677,2.99885369,154.01,153.98,0.04931096]
[1762516575864,0.04885369,154.01,153.98,0.04931096]
[1762516576064,0.04885369,154.01,153.98,3.21931096]
[1762516576773,0.04885369,154.01,153.98,5.89701096]
[1762516576965,0.04885369,154.01,153.98,0.04931096]
[1762516577766,0.04885369,154.01,153.98,3.21931096]
[1762516578166,0.04885369,154.01,153.98,0.04931096]
[1762516578775,2.99885369,154.01,153.98,0.04931096]
[1762516579473,4.29885369,154.01,153.92,66.74]
[1762516579776,2.95,153.99,153.86,5.0110802]
[1762516580273,4.9274983,153.98,153.86,5.0110802]
[1762516580577,2.95,153.99,153.86,5.0110802]
[1762516580773,0.04134692,153.94,153.92,5.8502]
[1762516581168,6.03179962,154.04,153.93,1.3]
[1762516581365,4.93093882,154.03,153.99,5.8473]
[1762516581571,2.95,154.05,153.98,3.17]
[1762516582067,2.95,154.08,154.01,5.8466]
[1762516582264,2.99654228,154.06,154.03,0.04244982]
[1762516582470,7.8837525,154.05,154.03,0.04244982]
[1762516582676,2.95,154.05,154.03,0.04244982]
[1762516583877,2.99654228,154.06,154.03,0.04244982]
[1762516584182,4.93168784,154.05,154.03,0.04244982]
[1762516584371,4.93168784,154.04,154.03,0.04244982]
[1762516584672,2.99654228,154.06,154.03,0.04244982]
[1762516584878,4.93129178,154.05,154.03,0.04244982]
[1762516585077,2.99654228,154.06,154.03,0.04244982]
[1762516585277,4.93264092,154.05,154.03,0.04244982]
[1762516585470,2.99654228,154.06,154.03,0.04244982]
[1762516585670,2.95,154.04,154.03,0.04244982]
[1762516585873,7.88158408,154.04,154.03,0.04244982]
[1762516586081,7.88158408,154.04,153.98,3.17]
[1762516586270,2.95,154.02,153.98,3.17]
[1762516586671,2.95,154.02,153.9,11.7016]
[1762516586672,2.95,154.02,153.94,3.17]
[1762516586872,4.93335822,154.01,153.94,3.17]
[1762516587182,0.04941351,153.99,153.96,3.21842318]
[1762516587672,0.04941351,153.99,153.97,5.8481]
[1762516587880,0.04941351,153.99,153.98,3.17]
[1762516588079,0.04941351,153.99,153.97,5.8481]
[1762516588381,0.04941351,153.99,153.97,9.0181]
[1762516588984,0.04941351,153.99,153.98,3.17]
[1762516589998,0.00176125,153.99,153.98,3.17]
[1762516590283,6.03179962,154.08,153.98,3.17]
[1762516590284,4.93310208,154.05,154.02,9.0163]
[1762516590485,8.98179962,154.08,154.02,9.0163]
[1762516590686,2.95,154.06,154.02,9.0163]
[1762516590981,2.95,154.06,154.02,5.8463]
[1762516591178,2.95,154.06,154.02,9.0163]
[1762516591384,2.95,154.06,154.02,3.17]
[1762516591580,2.99624159,154.06,154.02,0.0440062]
[1762516592990,2.95,154.04,154.02,0.0440062]
[1762516593785,8.7958,154.04,154.02,0.0440062]
[1762516594090,2.95,154.03,154.02,0.0440062]
[1762516595189,2.95,154.05,154.02,0.0440062]
[1762516595390,8.7953,154.05,154.02,0.0440062]
[1762516595686,2.95,154.04,154.02,0.0440062]
[1762516596488,8.7957,154.04,154.02,0.0440062]
[1762516596796,2.95,154.03,154.02,0.0440062]
[1762516597980,2.95,154.0,153.93,3.17]
[1762516598180,2.95,154.0,153.9,3.17]
[1762516598584,5.0110802,154.04,153.9,3.17]
[1762516598585,2.95,153.98,153.9,3.17]
[1762516599088,2.99310692,153.96,153.92,0.04511669]
[1762516599283,2.99746352,153.96,153.92,0.04393419]
[1762516599486,0.04746352,153.96,153.92,3.25393419]
[1762516599790,0.04746352,153.96,153.93,5.8497]
[1762516600383,0.04746352,153.96,153.93,9.0597]
[1762516600593,0.04746352,153.96,153.93,3.21]
[1762516600788,3.20746352,153.96,153.92,0.04393419]
[1762516601990,3.20746352,153.96,153.92,5.89393419]
[1762516602184,3.20746352,153.96,153.92,3.25393419]
[1762516602581,3.20746352,153.96,153.92,0.04393419]
[1762516602786,3.20746352,153.96,153.92,3.25393419]
[1762516603189,3.20746352,153.96,153.92,0.04393419]
[1762516604093,0.04746352,153.96,153.92,3.25393419]
[1762516604297,0.04746352,153.96,153.93,3.21]
[1762516604690,3.19,153.92,153.85,3.21]
[1762516605190,3.19,153.92,153.87,5.852]
[1762516605391,3.19,153.92,153.88,3.21]
[1762516605892,3.23589221,153.92,153.88,0.04648654]
[1762516606083,3.19,153.9,153.88,0.04648654]
[1762516606990,9.0411,153.9,153.88,0.04648654]
[1762516607196,3.19,153.89,153.88,0.04648654]
[1762516610191,14.05299859,153.89,153.82,5.8538]
[1762516610391,9.0415,153.89,153.82,5.8538]
[1762516610592,3.19,153.88,153.82,5.8538]
[1762516610792,3.19,153.88,153.81,3.21]
[1762516611294,3.23603628,153.86,153.83,0.04380288]
[1762516613104,3.19,153.84,153.83,0.04380288]
[1762516613295,3.19,153.84,153.77,3.21]
[1762516613599,3.19,153.84,153.75,3.21]
[1762516614005,9.0438,153.83,153.76,5.8561]
[1762516614200,9.0438,153.83,153.75,3.21]
[1762516614401,3.23188668,153.81,153.78,0.04279406]
[1762516616102,0.04188668,153.81,153.78,3.25279406]
[1762516616298,0.04188668,153.81,153.78,9.56387426]
[1762516616504,0.04188668,153.81,153.79,3.21]
[1762516616900,3.19,153.89,153.8,3.21]
[1762516617097,3.19,153.89,153.82,3.21]
[1762516617695,3.19,153.87,153.76,3.21]
[1762516617991,3.23868763,153.83,153.8,0.04327166]
[1762516618299,3.23329847,153.83,153.8,0.04939207]
[1762516621799,0.04329847,153.83,153.8,3.25939207]
[1762516622404,3.23329847,153.83,153.8,0.04939207]
[1762516622792,0.04329847,153.83,153.8,3.25939207]
[1762516623305,3.23329847,153.83,153.8,0.04939207]
[1762516624299,0.04329847,153.83,153.8,3.25939207]
[1762516624603,5.11366933,153.9,153.83,3.21]
[1762516624800,3.19,153.91,153.83,3.21]
[1762516625304,3.19,153.9,153.83,3.21]
[1762516625504,3.19,153.87,153.81,5.8541]
[1762516625700,0.04504611,153.86,153.82,3.25763786]
[1762516626907,3.23504611,153.86,153.82,0.04763786]
[1762516627406,9.08754611,153.86,153.82,0.04763786]
[1762516627701,3.19,153.85,153.82,0.04763786]
[1762516627900,5.8533,153.84,153.82,0.04763786]
[1762516628102,3.23504611,153.86,153.82,0.04763786]
[1762516629696,6.03091158,153.92,153.82,6.35871806]
[1762516629901,3.19,153.94,153.85,8.2210802]
[1762516630302,3.19,153.94,153.88,5.8516]
[1762516630501,3.19,153.94,153.86,3.21]
[1762516630807,3.19,153.94,153.89,3.21]
[1762516630808,0.04303045,153.92,153.89,3.21]
[1762516631105,0.04303045,153.92,153.88,5.89632465]
[1762516631699,3.23303045,153.92,153.88,0.04482465]
[1762516633009,3.19,153.9,153.88,0.04482465]
[1762516633504,0.04303045,153.92,153.89,4.51]
[1762516633707,0.04303045,153.92,153.89,3.21]
[1762516633908,0.04303045,153.92,153.91,3.21]
[1762516634408,0.04303045,153.92,153.9,8.9708]
[1762516635204,0.04303045,153.92,153.88,0.04482465]
[1762516635205,3.24303045,153.92,153.88,0.04482465]
[1762516635805,0.04303045,153.92,153.89,3.12]
[1762516636915,0.04303045,153.92,153.9,5.8507]
[1762516637410,3.24303045,153.92,153.88,0.04482465]
[1762516637611,0.04303045,153.92,153.88,3.16482465]
[1762516638311,0.04303045,153.92,153.91,3.12]
[1762516638512,5.1285589,153.97,153.91,3.12]
[1762516638806,5.8476,153.99,153.91,3.12]
[1762516638999,5.13047965,153.98,153.91,3.12]
[1762516639202,5.13047965,153.97,153.91,3.12]
[1762516639405,3.2,154.0,153.91,3.12]
[1762516639611,0.04742119,153.97,153.94,0.04922917]
[1762516640514,0.04742119,153.97,153.94,5.89852917]
[1762516640708,0.04742119,153.97,153.94,3.16922917]
[1762516641414,0.04742119,153.97,153.96,3.12]
[1762516641917,0.04742119,153.97,153.94,3.16922917]
[1762516643012,0.04742119,153.97,153.96,3.12]
[1762516644609,0.04742119,153.97,153.94,0.04922917]
[1762516644814,3.24742119,153.97,153.94,0.04922917]
[1762516646114,0.04742119,153.97,153.94,3.16922917]
[1762516646615,0.04742119,153.97,153.94,0.04922917]
[1762516646818,3.2,153.95,153.94,0.04922917]
[1762516647014,0.04742119,153.97,153.94,3.16922917]
[1762516647215,3.24742119,153.97,153.94,0.04922917]
[1762516647412,5.13660293,153.96,153.94,0.04922917]
[1762516647620,3.24742119,153.97,153.94,0.04922917]
[1762516647813,5.13660293,153.96,153.94,0.04922917]
[1762516648014,9.09582119,153.97,153.94,0.04922917]
[1762516648320,8.33707493,153.96,153.94,0.04922917]
[1762516648519,3.2,153.95,153.94,0.04922917]
[1762516649219,3.2,153.95,153.85,8.53320541]
[1762516649220,9.0495,153.94,153.87,3.12]
[1762516649406,5.13853952,153.93,153.87,3.12]
[1762516649609,3.2,153.92,153.87,3.12]
[1762516650120,3.2,153.91,153.87,3.12]
[1762516650305,3.2,153.91,153.88,0.04452725]
[1762516650306,3.24727546,153.91,153.88,0.04452725]
[1762516650506,3.2,153.89,153.88,0.04452725]
[1762516652419,8.33994566,153.89,153.88,0.04452725]
[1762516652621,3.2,153.89,153.88,0.04452725]
[1762516653122,3.24727546,153.91,153.88,0.04452725]
[1762516653428,3.2,153.9,153.88,0.04452725]
[1762516654422,0.04727546,153.91,153.88,3.16452725]
[1762516654912,3.24727546,153.91,153.88,0.04452725]
[1762516656726,9.09797546,153.91,153.88,0.04452725]
[1762516656930,3.2,153.9,153.88,0.04452725]
[1762516657414,9.0511,153.9,153.88,0.04452725]
[1762516657620,3.2,153.89,153.88,0.04452725]
[1762516658124,8.34103734,153.89,153.88,0.04452725]
[1762516658724,9.0519,153.88,153.82,5.8537]
[1762516658922,9.0519,153.88,153.81,3.12]
[1762516658923,3.2,153.88,153.81,3.12]